bitfinex/quotes_ETHUSD_20230111
["timestamp","ask_amount","ask_price","bid_price","bid_amount"]
[1673467435753,35.84398981,1343.0,1342.9,0.00324994]
[1673467435967,43.28999981,1343.0,1342.9,0.00324994]
[1673467437295,48.43852618,1343.0,1342.9,0.00324994]
[1673467437612,45.17759981,1343.0,1342.9,0.00324994]
[1673467438391,48.99937608,1343.0,1342.9,0.00324994]
[1673467439189,56.83637608,1343.0,1342.9,0.00324994]
[1673467439537,55.50737608,1343.0,1342.9,0.00324994]
[1673467439869,56.83637608,1343.0,1342.9,0.00324994]
[1673467440760,56.90862608,1343.0,1342.9,0.00324994]
[1673467440966,57.89012748,1343.0,1342.9,0.00324994]
[1673467441373,53.83835121,1343.0,1342.9,0.00324994]
[1673467441552,21.58281981,1343.0,1342.9,0.00324994]
[1673467441708,21.02421981,1343.0,1342.9,0.00324994]
[1673467442053,43.36224981,1343.0,1342.9,0.00324994]
[1673467442465,55.5788724,1343.0,1342.9,0.00324994]
[1673467442669,56.9078724,1343.0,1342.9,0.00324994]
[1673467443599,56.90936099,1343.0,1342.9,0.00324994]
[1673467443812,56.90936188,1343.0,1342.9,0.00324994]
[1673467444020,58.46513192,1343.0,1342.9,0.00324994]
[1673467444599,59.57553425,1343.0,1342.9,0.00324994]
[1673467444754,60.89853425,1343.0,1342.9,0.00324994]
[1673467445919,60.74852677,1343.0,1342.9,0.00324994]
[1673467446227,60.74852677,1343.0,1342.9,9.94e-06]
[1673467446228,63.3699703,1343.0,1342.9,9.94e-06]
[1673467446442,70.81776291,1343.0,1342.9,9.94e-06]
[1673467446658,71.92665922,1343.0,1342.9,9.94e-06]
[1673467446869,69.15441845,1343.0,1342.9,9.94e-06]
[1673467447175,70.82734948,1343.0,1342.9,9.94e-06]
[1673467447519,66.0506494,1343.0,1342.9,9.94e-06]
[1673467447727,64.94018007,1343.0,1342.9,9.94e-06]
[1673467447912,68.61199887,1343.0,1342.9,9.94e-06]
[1673467448124,70.82979148,1343.0,1342.9,9.94e-06]
[1673467448446,69.15773383,1343.0,1342.9,9.94e-06]
[1673467448656,72.65864146,1343.0,1342.9,9.94e-06]
[1673467448850,74.33098741,1343.0,1342.9,9.94e-06]
[1673467449750,72.65864146,1343.0,1342.9,9.94e-06]
[1673467450535,74.33157127,1343.0,1342.9,9.94e-06]
[1673467450998,72.65864146,1343.0,1342.9,9.94e-06]
[1673467451596,74.33128754,1343.0,1342.9,9.94e-06]
[1673467452012,72.65864146,1343.0,1342.9,9.94e-06]
[1673467452441,67.65864146,1343.0,1342.9,9.94e-06]
[1673467453212,74.3312773,1343.0,1342.9,9.94e-06]
[1673467453608,70.83036967,1343.0,1342.9,9.94e-06]
[1673467454029,74.33128983,1343.0,1342.9,9.94e-06]
[1673467454418,73.00128983,1343.0,1342.9,9.94e-06]
[1673467454629,31.45013826,1343.0,1342.9,9.94e-06]
[1673467454890,11.7640885,1343.0,1342.9,9.94e-06]
[1673467455062,8.26966064,1343.0,1342.9,9.94e-06]
[1673467455277,1.82722582,1343.0,1342.9,1.84729935]
[1673467455509,1.82722582,1343.0,1342.9,9.29386935]
[1673467455700,0.066,1343.1,1342.9,9.39186935]
[1673467456043,26.9920849,1343.3,1343.0,4.11633111]
[1673467456262,3.79766064,1343.2,1343.0,2.26918694]
[1673467457205,3.79766064,1343.2,1343.0,3.37096216]
[1673467457416,0.066,1343.3,1343.1,16.73792089]
[1673467457570,5.58690525,1343.4,1343.1,9.71967625]
[1673467457781,9.38456589,1343.4,1343.1,9.71967625]
[1673467458035,9.38456589,1343.4,1343.1,2.27421625]
[1673467458249,8.26966064,1343.4,1343.1,2.17621625]
[1673467458623,8.26966064,1343.4,1343.1,9.62155625]
[1673467458834,8.26966064,1343.4,1343.1,9.71955625]
[1673467459271,2.95,1343.3,1343.1,9.71955625]
[1673467460135,2.95,1343.3,1343.2,0.97195563]
[1673467460884,2.95,1343.3,1343.2,8.41685563]
[1673467461074,0.066,1343.4,1343.2,26.57242768]
[1673467461291,60.28690525,1343.6,1343.2,24.72565563]
[1673467461292,46.28890525,1343.6,1343.2,24.72565563]
[1673467461619,38.97166064,1343.6,1343.3,14.89545751]
[1673467461781,8.27166064,1343.6,1343.3,11.35228882]
[1673467462568,3.0,1343.5,1343.3,11.35228882]
[1673467462782,8.33566064,1343.6,1343.3,11.35228882]
[1673467463085,0.002,1343.6,1343.5,1.33]
[1673467463263,0.11958627,1343.7,1343.5,8.78041644]
[1673467463468,3.91724691,1343.7,1343.5,16.32165644]
[1673467463713,3.91724691,1343.7,1343.5,8.87841644]
[1673467463925,3.91724691,1343.7,1343.5,0.10517644]
[1673467464155,3.0,1343.6,1343.4,1.33]
[1673467464365,10.44294,1343.6,1343.4,0.39011313]
[1673467464521,10.44494,1343.6,1343.4,0.39011313]
[1673467464732,8.26966064,1343.5,1343.3,0.00717751]
[1673467464991,3.79766064,1343.4,1343.2,1.416]
[1673467465207,11.24151064,1343.4,1343.1,1.428]
[1673467465397,26.12915064,1343.4,1343.1,1.33]
[1673467465612,18.68530064,1343.4,1343.1,1.33]
[1673467466768,3.0,1343.3,1343.1,1.33]
[1673467466973,10.44453,1343.3,1343.1,1.33]
[1673467467409,7.44453,1343.3,1343.1,1.33]
[1673467467817,3.79766064,1343.3,1343.1,1.33]
[1673467468414,21.68656064,1343.3,1343.1,1.33]
[1673467468617,6.79766064,1343.2,1342.9,20.13520994]
[1673467468894,2.0,1343.1,1342.9,1.42800994]
[1673467469193,29.13276064,1343.2,1342.9,23.66956994]
[1673467469194,6.86366064,1343.2,1342.9,23.66956994]
[1673467469358,6.79766064,1343.2,1342.9,26.28205532]
[1673467469569,3.0,1343.2,1342.9,24.95205532]
[1673467470027,3.0,1343.2,1343.1,7.44546]
[1673467470194,3.0,1343.2,1343.1,8.86646]
[1673467470827,3.066,1343.3,1343.1,23.75738]
[1673467471072,6.79966064,1343.3,1343.1,23.75438]
[1673467471295,6.79766064,1343.3,1343.1,23.75738]
[1673467473497,6.79766064,1343.3,1343.1,16.31192]
[1673467473664,21.68638064,1343.3,1343.1,1.421]
[1673467473874,18.71401064,1343.3,1343.1,1.323]
[1673467474079,30.9810907,1343.3,1343.1,1.323]
[1673467474341,30.9810907,1343.3,1343.0,8.86429468]
[1673467474871,30.9810907,1343.3,1343.0,1.41861468]
[1673467475030,38.4254607,1343.3,1343.0,1.32061468]
[1673467475238,38.4254607,1343.3,1343.0,8.76658468]
[1673467475454,38.4254607,1343.3,1343.0,1.41861468]
[1673467475658,6.79766064,1343.2,1343.0,1.32061468]
[1673467476441,14.24256064,1343.2,1343.0,1.32061468]
[1673467476635,21.68746064,1343.2,1343.0,1.32061468]
[1673467476853,25.89255271,1343.2,1343.0,1.32061468]
[1673467477236,30.36455271,1343.2,1342.9,9.32490994]
[1673467477447,17.89167,1343.1,1342.9,8.00590994]
[1673467477761,3.0,1343.0,1342.9,0.09800994]
[1673467478084,3.0,1343.0,1342.9,9.94e-06]
[1673467478740,6.0,1343.0,1342.9,9.94e-06]
[1673467479390,9.79766064,1343.0,1342.9,9.94e-06]
[1673467479550,12.7203937,1343.0,1342.9,9.94e-06]
[1673467479905,9.7203937,1343.0,1342.9,9.94e-06]
[1673467480226,6.79766064,1343.0,1342.9,9.94e-06]
[1673467481360,14.24367064,1343.0,1342.9,9.94e-06]
[1673467482011,21.68968064,1343.0,1342.9,9.94e-06]
[1673467482380,29.13569064,1343.0,1342.9,9.94e-06]
[1673467482800,21.68968064,1343.0,1342.9,9.94e-06]
[1673467483076,25.0570067,1343.0,1342.9,9.94e-06]
[1673467483592,17.6109967,1343.0,1342.9,9.94e-06]
[1673467483777,10.1649867,1343.0,1342.9,9.94e-06]
[1673467483989,10.1649867,1343.0,1342.7,1.480837]
[1673467483990,1.16229746,1342.9,1342.7,1.480837]
[1673467484258,22.34136,1342.8,1342.7,1.382837]
[1673467484536,27.60613245,1342.8,1342.7,1.382837]
[1673467484697,29.07813245,1342.8,1342.7,1.382837]
[1673467484911,36.52525245,1342.8,1342.7,1.382837]
[1673467486596,37.08385245,1342.8,1342.7,1.382837]
[1673467486792,40.75486197,1342.8,1342.7,1.382837]
[1673467487005,37.08385245,1342.8,1342.7,1.382837]
[1673467490894,14.74249245,1342.8,1342.7,1.382837]
[1673467491352,22.18961245,1342.8,1342.7,1.382837]
[1673467491564,29.63673245,1342.8,1342.7,1.382837]
[1673467491778,37.08385245,1342.8,1342.7,1.382837]
[1673467492995,37.29685245,1342.8,1342.7,1.382837]
[1673467493678,51.29685245,1342.8,1342.7,1.382837]
[1673467494903,56.2949807,1342.8,1342.7,1.382837]
[1673467495164,57.85080424,1342.8,1342.7,1.382837]
[1673467495867,65.68780424,1342.8,1342.7,1.382837]
[1673467497743,60.68967599,1342.8,1342.7,1.382837]
[1673467498176,52.85267599,1342.8,1342.7,1.382837]
[1673467498388,45.40555599,1342.8,1342.7,1.382837]
[1673467498705,52.85267599,1342.8,1342.7,1.382837]
[1673467498930,64.35961687,1342.8,1342.7,1.382837]
[1673467499318,60.68967599,1342.8,1342.7,1.382837]
[1673467499843,60.76192599,1342.8,1342.7,1.382837]
[1673467500054,8.63873418,1342.8,1342.7,1.382837]
[1673467500313,3.28525,1342.8,1342.7,1.382837]
[1673467500481,0.28525,1342.8,1342.7,1.382837]
[1673467500682,0.213,1342.8,1342.7,1.382837]
[1673467500894,11.45778064,1342.8,1342.7,1.382837]
[1673467501103,14.45778064,1342.8,1342.7,1.382837]
[1673467501326,20.82968845,1342.8,1342.7,1.382837]
[1673467501768,13.38256845,1342.8,1342.7,1.382837]
[1673467503762,20.82968845,1342.8,1342.7,1.382837]
[1673467504001,35.72392845,1342.8,1342.7,1.382837]
[1673467504478,71.33301854,1342.8,1342.7,1.382837]
[1673467504691,53.00677845,1342.8,1342.7,1.382837]
[1673467504892,56.68209642,1342.8,1342.7,1.382837]
[1673467505107,53.00677845,1342.8,1342.7,1.382837]
[1673467506509,38.11253845,1342.8,1342.7,1.382837]
[1673467507053,30.66541845,1342.8,1342.7,1.382837]
[1673467507282,45.55965845,1342.8,1342.7,1.382837]
[1673467507580,53.00677845,1342.8,1342.7,1.17968039]
[1673467508389,50.35477845,1342.8,1342.7,1.17968039]
[1673467513126,49.79617845,1342.8,1342.7,1.17968039]
[1673467513570,50.9110837,1342.8,1342.7,1.17968039]
[1673467515016,49.79617845,1342.8,1342.7,1.17968039]
[1673467515473,50.9110837,1342.8,1342.7,1.17968039]
[1673467515909,51.4696837,1342.8,1342.7,1.17968039]
[1673467516218,53.14231954,1342.8,1342.7,1.17968039]
[1673467516592,56.24361494,1342.8,1342.7,1.17968039]
[1673467517429,59.01785571,1342.8,1342.7,1.17968039]
[1673467517656,59.01585571,1342.8,1342.7,1.17968039]
[1673467518075,66.85285571,1342.8,1342.7,1.17968039]
[1673467518532,64.08061494,1342.8,1342.7,1.17968039]
[1673467518867,60.40957106,1342.8,1342.7,1.17968039]
[1673467519011,62.08019459,1342.8,1342.7,1.17968039]
[1673467519499,61.73957106,1342.8,1342.7,1.17968039]
[1673467519657,63.41083655,1342.8,1342.7,1.17968039]
[1673467520008,61.73957106,1342.8,1342.7,1.17968039]
[1673467520375,63.41083024,1342.8,1342.7,1.17968039]
[1673467520882,38.46179763,1342.8,1342.7,1.17968039]
[1673467521022,28.56890804,1342.8,1342.7,1.17968039]
[1673467521684,52.58152722,1342.8,1342.7,1.17968039]
[1673467522509,45.13440722,1342.8,1342.7,1.17968039]
[1673467522717,45.13507206,1342.8,1342.7,1.17968039]
[1673467522907,44.02031763,1342.8,1342.7,1.17968039]
[1673467523225,51.46743763,1342.8,1342.7,1.17968039]
[1673467523546,52.01397106,1342.8,1342.7,1.17968039]
[1673467523964,56.10821183,1342.8,1342.7,1.17968039]
[1673467524787,56.12180449,1342.8,1342.7,1.17968039]
[1673467525225,53.89041922,1342.8,1342.7,1.17968039]
[1673467526998,61.72741922,1342.8,1342.7,1.17968039]
[1673467527256,62.28601922,1342.8,1342.7,1.17968039]
[1673467528148,71.09575818,1342.8,1342.7,1.17968039]
[1673467528360,7.472,1342.7,1342.6,0.08037064]
[1673467528590,51.36950085,1342.7,1342.5,0.89530894]
[1673467528779,38.8495276,1342.6,1342.5,0.89530894]
[1673467529465,37.17588033,1342.6,1342.5,0.89530894]
[1673467529773,35.28739895,1342.6,1342.5,0.89530894]
[1673467529987,18.26313003,1342.6,1342.5,0.89530894]
[1673467530141,14.05803796,1342.6,1342.5,0.89530894]
[1673467530477,19.83321965,1342.6,1342.5,0.89530894]
[1673467530689,12.38498965,1342.6,1342.5,0.89530894]
[1673467531319,4.11532901,1342.6,1342.5,17.11886894]
[1673467531533,1.11532901,1342.6,1342.5,26.51356359]
[1673467531752,1.11532901,1342.6,1342.5,23.80559969]
[1673467532145,1.11532901,1342.6,1342.5,7.81621536]
[1673467532352,1.11532901,1342.6,1342.5,2.85117448]
[1673467532675,16.83321965,1342.6,1342.5,0.89530894]
[1673467532877,9.38498965,1342.6,1342.5,0.89530894]
[1673467533086,25.62134549,1342.6,1342.5,0.89530894]
[1673467533348,23.94848945,1342.6,1342.5,0.89530894]
[1673467533513,36.60615131,1342.6,1342.5,0.89530894]
[1673467533723,27.48506527,1342.6,1342.5,0.89530894]
[1673467533974,20.03683527,1342.6,1342.5,0.89530894]
[1673467535613,27.48506527,1342.6,1342.5,0.89530894]
[1673467536037,36.60615131,1342.6,1342.5,0.89530894]
[1673467536283,44.05438131,1342.6,1342.5,0.89530894]
[1673467537345,42.93911151,1342.6,1342.5,0.89530894]
[1673467537533,44.05444178,1342.6,1342.5,0.89530894]
[1673467539136,24.48512574,1342.6,1342.5,0.89530894]
[1673467539328,13.50031992,1342.6,1342.5,0.89530894]
[1673467539709,4.91298965,1342.6,1342.5,8.34408894]
[1673467539916,4.91298965,1342.6,1342.5,0.99330894]
[1673467540125,4.91298965,1342.6,1342.5,0.89530894]
[1673467540341,4.91298965,1342.6,1342.5,10.19200277]
[1673467540342,1.11532901,1342.6,1342.5,10.19200277]
[1673467540554,1.11532901,1342.6,1342.5,20.36880708]
[1673467540710,1.11532901,1342.6,1342.5,12.92002708]
[1673467540920,1.11532901,1342.6,1342.5,11.07211325]
[1673467541168,1.11532901,1342.6,1342.5,12.92001734]
[1673467541599,1.11532901,1342.6,1342.5,5.47123734]
[1673467541764,1.11532901,1342.6,1342.5,2.84121303]
[1673467541978,1.11532901,1342.6,1342.5,2.74321303]
[1673467542653,1.11532901,1342.6,1342.5,10.19199303]
[1673467542828,1.11532901,1342.6,1342.5,27.61932825]
[1673467543024,1.11532901,1342.6,1342.5,30.60260772]
[1673467543234,1.11532901,1342.6,1342.5,33.65979145]
[1673467543479,1.11532901,1342.6,1342.5,39.42908401]
[1673467543696,1.11532901,1342.6,1342.5,43.24959425]
[1673467543871,1.11532901,1342.6,1342.5,41.59631478]
[1673467544073,1.11532901,1342.6,1342.5,43.2630979]
[1673467544284,1.11532901,1342.6,1342.5,43.26309654]
[1673467544522,1.11532901,1342.6,1342.5,37.77580454]
[1673467544750,1.11532901,1342.6,1342.5,39.44252533]
[1673467545371,1.11532901,1342.6,1342.5,39.44154602]
[1673467545877,1.11532901,1342.6,1342.5,37.23297938]
[1673467548007,1.11532901,1342.6,1342.5,38.34274326]
[1673467551658,1.11532901,1342.6,1342.5,36.67700178]
[1673467553272,1.11532901,1342.6,1342.5,28.99822178]
[1673467553448,1.11532901,1342.6,1342.5,5.50121303]
[1673467553645,1.11532901,1342.6,1342.5,20.39877303]
[1673467553859,1.11532901,1342.6,1342.5,17.22086894]
[1673467554207,1.11532901,1342.6,1342.5,19.06866013]
[1673467554426,1.11532901,1342.6,1342.5,6.01889165]
[1673467554585,1.11532901,1342.6,1342.5,13.46767165]
[1673467555891,1.11532901,1342.6,1342.5,20.91645165]
[1673467556080,1.11532901,1342.6,1342.5,28.36523165]
[1673467556505,1.11532901,1342.6,1342.5,6.01889165]
[1673467557002,2.77231691,1342.6,1342.5,6.01889165]
[1673467557539,2.77231691,1342.6,1342.5,13.46767165]
[1673467557893,1.11532901,1342.6,1342.5,13.46767165]
[1673467558723,1.11532901,1342.6,1342.5,6.01889165]
[1673467559050,1.11532901,1342.6,1342.5,13.46767165]
[1673467559539,1.11532901,1342.6,1342.5,20.91645165]
[1673467560050,1.11532901,1342.6,1342.5,27.03523165]
[1673467560260,1.11532901,1342.6,1342.5,33.89829074]
[1673467560610,1.11532901,1342.6,1342.5,37.77998054]
[1673467560951,1.11532901,1342.6,1342.5,37.79039488]
[1673467561463,1.11275295,1342.6,1342.5,37.79039488]
[1673467561657,1.11275295,1342.6,1342.5,38.02039488]
[1673467562040,1.11275295,1342.6,1342.5,38.57919488]
[1673467562391,1.11275295,1342.6,1342.5,38.02039488]
[1673467562602,1.11275295,1342.6,1342.5,39.68613636]
[1673467562814,1.11275295,1342.6,1342.5,38.02039488]
[1673467564246,1.11275295,1342.6,1342.5,39.68613636]
[1673467565086,1.11275295,1342.6,1342.5,38.02039488]
[1673467565767,0.213,1342.8,1342.5,34.32481217]
[1673467566100,0.213,1342.8,1342.6,5.28024076]
[1673467566400,0.213,1342.8,1342.7,22.34304]
[1673467566576,0.213,1342.8,1342.7,22.44104]
[1673467568718,0.213,1342.8,1342.7,14.99336]
[1673467568926,0.213,1342.8,1342.7,22.44104]
[1673467569145,0.213,1342.8,1342.7,26.1613631]
[1673467569497,0.213,1342.8,1342.7,28.00883583]
[1673467570499,0.213,1342.8,1342.7,5.66579583]
[1673467570674,0.213,1342.8,1342.7,14.99336]
[1673467571113,0.213,1342.8,1342.7,22.44104]
[1673467571605,1e-08,1342.8,1342.7,22.44104]
[1673467572811,1e-08,1342.8,1342.7,0.098]
[1673467573021,1e-08,1342.8,1342.6,0.11786622]
[1673467573232,1e-08,1342.8,1342.6,0.01986622]
[1673467573443,7.44725001,1342.8,1342.5,20.01930973]
[1673467573660,10.44725001,1342.8,1342.5,27.46776973]
[1673467573972,10.44715001,1342.8,1342.5,31.22513018]
[1673467574162,21.69196065,1342.8,1342.5,0.99330894]
[1673467574369,14.24681065,1342.8,1342.5,0.89530894]
[1673467574719,7.35626065,1342.8,1342.5,15.79277894]
[1673467574865,7.35626065,1342.8,1342.5,15.89077894]
[1673467575415,14.80347065,1342.8,1342.5,8.44199894]
[1673467575736,1.48034707,1342.7,1342.5,0.99330894]
[1673467575951,1.48034707,1342.7,1342.5,0.89530894]
[1673467576156,1.48034707,1342.7,1342.5,15.79277894]
[1673467576337,1.48034707,1342.7,1342.5,15.89077894]
[1673467577416,1.48034707,1342.7,1342.5,8.44199894]
[1673467578538,1.48034707,1342.7,1342.5,15.89077894]
[1673467578754,1.43803471,1342.6,1342.5,0.99330894]
[1673467579006,1.43803471,1342.6,1342.5,2.84117155]
[1673467579200,1.43803471,1342.6,1342.5,0.89530894]
[1673467579416,5.34400771,1342.7,1342.5,25.08950634]
[1673467579604,12.08878632,1342.8,1342.5,23.33964894]
[1673467579818,3.0,1342.7,1342.5,23.33964894]
[1673467580034,3.0,1342.7,1342.5,24.44941282]
[1673467580393,3.0,1342.7,1342.6,24.19245208]
[1673467580603,3.0,1342.7,1342.6,24.29045208]
[1673467581302,3.0,1342.7,1342.6,16.84222208]
[1673467581498,3.0,1342.7,1342.6,9.39399208]
[1673467582345,3.0,1342.7,1342.6,0.098]
[1673467582597,3.0,1342.7,1342.5,17.00002282]
[1673467582789,3.0,1342.7,1342.5,17.00025282]
[1673467583000,3.0,1342.7,1342.6,1.84774829]
[1673467583200,3.0,1342.7,1342.5,24.44877282]
[1673467583399,10.44779,1342.7,1342.5,2.10307282]
[1673467583640,17.89558,1342.7,1342.5,2.00507282]
[1673467583853,25.34337,1342.7,1342.5,0.89530894]
[1673467584234,3.79766064,1342.6,1342.5,0.89530894]
[1673467584553,3.79766064,1342.6,1342.5,2.74319745]
[1673467585623,11.24589064,1342.6,1342.5,2.74319745]
[1673467585834,3.79766064,1342.6,1342.5,2.74319745]
[1673467586968,3.79766064,1342.6,1342.5,0.89530894]
[1673467587184,3.79766064,1342.6,1342.5,2.74317604]
[1673467589433,7.0661017,1342.7,1342.5,10.19195604]
[1673467589643,6.79766064,1342.7,1342.5,15.89086894]
[1673467590225,6.79766064,1342.7,1342.5,8.44208894]
[1673467590484,6.79766064,1342.7,1342.5,15.89086894]
[1673467590657,6.79766064,1342.7,1342.5,23.33964894]
[1673467590850,6.79766064,1342.7,1342.5,15.89086894]
[1673467591066,6.79766064,1342.7,1342.5,8.44208894]
[1673467591412,21.69307064,1342.7,1342.5,0.99330894]
[1673467591630,3.0,1342.7,1342.5,8.34408894]
[1673467591843,3.0,1342.7,1342.5,8.44208894]
[1673467592051,3.0,1342.7,1342.5,0.99330894]
[1673467592242,10.4477,1342.7,1342.5,0.89530894]
[1673467592958,3.0,1342.7,1342.5,0.89530894]
[1673467593167,2.99781987,1342.7,1342.5,15.79278894]
[1673467593427,2.99781987,1342.7,1342.5,8.44200894]
[1673467593589,2.99781987,1342.7,1342.5,15.89078894]
[1673467593937,2.99781987,1342.7,1342.5,23.33956894]
[1673467594163,2.99781987,1342.7,1342.5,25.80937082]
[1673467594484,1.02692187,1342.7,1342.6,1.84771691]
[1673467594658,0.62460001,1342.8,1342.6,16.74389691]
[1673467594874,1e-08,1342.8,1342.6,14.99418]
[1673467595655,1e-08,1342.8,1342.6,22.44241]
[1673467595800,1e-08,1342.8,1342.6,25.87900847]
[1673467598153,1e-08,1342.8,1342.6,10.98254847]
[1673467598380,1e-08,1342.8,1342.6,7.54595]
[1673467599000,2.00000001,1342.8,1342.6,7.54595]
[1673467599389,3.79766064,1342.7,1342.6,0.098]
[1673467599644,3.79766064,1342.7,1342.5,0.89530894]
[1673467599645,18.69302064,1342.7,1342.5,0.89530894]
[1673467599813,23.35498361,1342.7,1342.5,0.89530894]
[1673467600033,30.80266361,1342.7,1342.5,0.89530894]
[1673467600361,6.79766064,1342.6,1342.5,0.89530894]
[1673467600575,14.24589064,1342.6,1342.5,0.89530894]
[1673467600927,21.69412064,1342.6,1342.5,0.89530894]
[1673467601138,25.69558261,1342.6,1342.5,0.89530894]
[1673467601506,26.81091288,1342.6,1342.5,0.89530894]
[1673467602256,11.91445288,1342.6,1342.5,0.89530894]
[1673467602469,19.36268288,1342.6,1342.5,0.89530894]
[1673467603099,18.24735261,1342.6,1342.5,0.89530894]
[1673467603304,33.14381261,1342.6,1342.5,0.89530894]
[1673467604183,38.73114288,1342.6,1342.5,0.89530894]
[1673467604795,37.61581261,1342.6,1342.5,0.89530894]
[1673467605630,43.05914288,1342.6,1342.5,0.89530894]
[1673467607184,43.61784288,1342.6,1342.5,0.89530894]
[1673467607611,43.05914288,1342.6,1342.5,0.89530894]
[1673467609540,28.16268288,1342.6,1342.5,0.89530894]
[1673467610489,15.27112261,1342.6,1342.5,0.89530894]
[1673467610887,15.27112261,1342.6,1342.5,8.34408894]
[1673467611097,15.27112261,1342.6,1342.5,8.44208894]
[1673467611315,15.27112261,1342.6,1342.5,0.99330894]
[1673467611536,15.27112261,1342.6,1342.5,0.89530894]
[1673467612764,10.79912261,1342.6,1342.5,8.34408894]
[1673467612992,10.79912261,1342.6,1342.5,0.99330894]
[1673467613323,33.14381261,1342.6,1342.5,0.89530894]
[1673467613483,38.73114288,1342.6,1342.5,0.89530894]
[1673467613693,41.20514288,1342.6,1342.5,0.89530894]
[1673467613902,33.75691288,1342.6,1342.5,0.89530894]
[1673467614165,41.20514288,1342.6,1342.5,0.89530894]
[1673467614329,33.75691288,1342.6,1342.5,0.89530894]
[1673467614744,25.19335261,1342.6,1342.5,0.89530894]
[1673467615949,17.74512261,1342.6,1342.5,0.8926834]
[1673467616567,25.19335261,1342.6,1342.5,0.8926834]
[1673467617579,17.74512261,1342.6,1342.5,0.8926834]
[1673467617790,7.30057882,1342.6,1342.5,10.18935261]
[1673467618010,5.474,1342.6,1342.5,8.3414634]
[1673467618339,5.474,1342.6,1342.5,2.83854323]
[1673467618543,2.474,1342.6,1342.5,5.37008494]
[1673467618892,2.474,1342.6,1342.5,3.62022511]
[1673467619103,5.474,1342.6,1342.5,0.8926834]
[1673467619276,2.474,1342.6,1342.5,0.8926834]
[1673467621788,9.92223,1342.6,1342.5,0.8926834]
[1673467622248,2.474,1342.6,1342.5,0.8926834]
[1673467622840,19.04449027,1342.6,1342.5,0.8926834]
[1673467623168,37.83004781,1342.6,1342.5,0.8926834]
[1673467623374,39.50290385,1342.6,1342.5,0.8926834]
[1673467623777,39.50283417,1342.6,1342.5,0.8926834]
[1673467623993,38.38757358,1342.6,1342.5,0.8926834]
[1673467624467,42.71757358,1342.6,1342.5,0.8926834]
[1673467624626,43.83284282,1342.6,1342.5,0.8926834]
[1673467625629,42.15998678,1342.6,1342.5,0.8926834]
[1673467626731,43.83284282,1342.6,1342.5,0.8926834]
[1673467627183,42.15998678,1342.6,1342.5,0.8926834]
[1673467627825,43.83284282,1342.6,1342.5,0.8926834]
[1673467628467,43.83265246,1342.6,1342.5,0.8926834]
[1673467628768,43.8326452,1342.6,1342.5,0.8926834]
[1673467629937,42.71757358,1342.6,1342.5,0.8926834]
[1673467630193,46.27806631,1342.6,1342.5,0.8926834]
[1673467631881,44.04757358,1342.6,1342.5,0.8926834]
[1673467633302,45.16243562,1342.6,1342.5,0.8926834]
[1673467633685,21.14488958,1342.6,1342.5,0.8926834]
[1673467633999,19.81488958,1342.6,1342.5,0.8926834]
[1673467634768,27.26311958,1342.6,1342.5,0.8926834]
[1673467634934,34.71134958,1342.6,1342.5,0.8926834]
[1673467635144,36.38420562,1342.6,1342.5,0.8926834]
[1673467635357,43.83243562,1342.6,1342.5,0.8926834]
[1673467636407,19.81488958,1342.6,1342.5,0.8926834]
[1673467636622,14.85852268,1342.6,1342.5,0.8926834]
[1673467637074,22.30675268,1342.6,1342.5,0.8926834]
[1673467637291,29.75498268,1342.6,1342.5,0.8926834]
[1673467639015,22.30675268,1342.6,1342.5,0.8926834]
[1673467639624,31.42783872,1342.6,1342.5,0.8926834]
[1673467640378,38.87606872,1342.6,1342.5,0.8926834]
[1673467641216,30.60640808,1342.6,1342.5,0.8926834]
[1673467641389,5.476,1342.6,1342.5,0.98195174]
[1673467641597,5.476,1342.6,1342.5,10.2786807]
[1673467641598,5.474,1342.6,1342.5,10.2786807]
[1673467641825,0.50304311,1342.6,1342.5,26.38400458]
[1673467642038,0.50304311,1342.6,1342.5,28.60854606]
[1673467642353,0.50304311,1342.6,1342.5,12.04524458]
[1673467643480,0.50304311,1342.6,1342.5,18.3812607]
[1673467643692,0.50304311,1342.6,1342.5,25.8330407]
[1673467643904,0.50304311,1342.6,1342.5,18.3842607]
[1673467644593,0.50304311,1342.6,1342.5,19.7082607]
[1673467644912,0.50304311,1342.6,1342.5,27.1570407]
[1673467645427,0.50304311,1342.6,1342.5,19.7082607]
[1673467647373,0.50304311,1342.6,1342.5,12.2594807]
[1673467649512,0.50304311,1342.6,1342.5,19.7082607]
[1673467650376,0.50304311,1342.6,1342.5,27.1570407]
[1673467650569,0.50304311,1342.6,1342.5,19.7082607]
[1673467650783,0.50304311,1342.6,1342.5,27.1570407]
[1673467651330,0.50304311,1342.6,1342.5,19.7082607]
[1673467651482,0.50304311,1342.6,1342.5,19.72632878]
[1673467651690,0.50304311,1342.6,1342.5,19.16752878]
[1673467652749,0.50304311,1342.6,1342.5,11.71874878]
[1673467653906,0.50304311,1342.6,1342.5,19.16752878]
[1673467654235,0.50304311,1342.6,1342.5,2.94596878]
[1673467654456,0.50304311,1342.6,1342.5,1.00001982]
[1673467655526,0.50304311,1342.6,1342.5,2.8479001]
[1673467655843,0.50304311,1342.6,1342.5,10.2966801]
[1673467655999,0.50304311,1342.6,1342.5,10.3946801]
[1673467656660,0.50304311,1342.6,1342.5,2.9459001]
[1673467656871,0.50304311,1342.6,1342.5,1.00001982]
[1673467658579,0.50304311,1342.6,1342.5,8.44879982]
[1673467658732,0.50304311,1342.6,1342.5,8.54679982]
[1673467659307,0.50304311,1342.6,1342.5,2.94591259]
[1673467659624,0.50304311,1342.6,1342.5,2.84791173]
[1673467659777,0.50304311,1342.6,1342.5,10.29668062]
[1673467659987,0.50304311,1342.6,1342.5,10.39468543]
[1673467660219,0.50304311,1342.6,1342.5,1.09801982]
[1673467660432,0.50304311,1342.6,1342.5,0.8926834]
[1673467660624,23.96259515,1342.6,1342.5,0.8926834]
[1673467661056,24.52129515,1342.6,1342.5,0.8926834]
[1673467661268,16.51436515,1342.6,1342.5,0.8926834]
[1673467661920,9.06613515,1342.6,1342.5,0.8926834]
[1673467662335,11.91514954,1342.6,1342.5,0.8926834]
[1673467662726,4.46691954,1342.6,1342.5,0.8926834]
[1673467662949,0.50304311,1342.6,1342.5,0.8926834]
[1673467663513,1.61790515,1342.6,1342.5,0.8926834]
[1673467663688,0.50304311,1342.6,1342.5,0.8926834]
[1673467663898,1.61790515,1342.6,1342.5,0.8926834]
[1673467664902,9.06613515,1342.6,1342.5,0.8926834]
[1673467665043,30.60926618,1342.6,1342.5,0.8926834]
[1673467666662,30.60926618,1342.6,1342.5,0.88929116]
[1673467667251,32.28212222,1342.6,1342.5,0.88929116]
[1673467668687,36.75412222,1342.6,1342.5,0.88929116]
[1673467669109,35.08126618,1342.6,1342.5,0.88929116]
[1673467669325,36.75412222,1342.6,1342.5,0.88929116]
[1673467669530,35.08126618,1342.6,1342.5,0.88929116]
[1673467671918,36.75412222,1342.6,1342.5,0.88929116]